bitfinex/quotes_BTCUSD_20250412
["timestamp","ask_amount","ask_price","bid_price","bid_amount"]
[1744463991910,2.87663837,83827.0,83826.0,3.8e-07]
[1744463992164,3.04336685,83827.0,83826.0,3.8e-07]
[1744463992999,3.03436685,83827.0,83826.0,3.8e-07]
[1744463993162,3.04336685,83827.0,83826.0,3.8e-07]
[1744463993569,3.05553145,83827.0,83826.0,3.8e-07]
[1744463993822,3.06853145,83827.0,83826.0,3.8e-07]
[1744463994235,3.05553145,83827.0,83826.0,3.8e-07]
[1744463994440,0.238629,83812.0,83811.0,0.002]
[1744463994638,1.31213104,83812.0,83811.0,0.002]
[1744463995665,1.28996644,83812.0,83811.0,0.002]
[1744463996066,0.87131659,83812.0,83811.0,0.05]
[1744463996465,1.21131659,83812.0,83811.0,0.05]
[1744463996672,1.23350063,83812.0,83811.0,0.05]
[1744463996933,1.24250063,83812.0,83811.0,0.05]
[1744463997136,1.26614275,83812.0,83811.0,0.05]
[1744463997351,1.38687123,83812.0,83811.0,0.05]
[1744463997521,1.26614275,83812.0,83811.0,0.05]
[1744463999379,1.2772499,83812.0,83811.0,0.05]
[1744464000639,1.2772499,83812.0,83811.0,0.002]
[1744464002855,0.60510385,83811.0,83808.0,0.0008446]
[1744464003061,0.47538239,83809.0,83808.0,0.0008446]
[1744464003400,0.88401939,83809.0,83808.0,0.0008446]
[1744464003579,0.90620343,83809.0,83808.0,0.0008446]
[1744464003937,0.65302558,83809.0,83808.0,0.2394846]
[1744464004203,0.48758558,83809.0,83808.0,0.0008446]
[1744464004480,0.50669273,83809.0,83808.0,0.0008446]
[1744464005084,0.51623358,83809.0,83808.0,0.0008446]
[1744464005278,0.52123358,83809.0,83808.0,0.0008446]
[1744464006282,0.51023358,83809.0,83808.0,0.0008446]
[1744464006801,0.50523358,83809.0,83808.0,0.0008446]
[1744464007054,0.79973325,83809.0,83808.0,0.0008446]
[1744464007328,0.75187058,83809.0,83808.0,0.0008446]
[1744464007726,1.16782563,83809.0,83808.0,0.0008446]
[1744464007934,1.50282563,83809.0,83808.0,0.0008446]
[1744464008152,1.50582563,83809.0,83808.0,0.0008446]
[1744464008348,1.51082563,83809.0,83808.0,0.0008446]
[1744464008761,0.75962863,83809.0,83808.0,0.0008446]
[1744464008919,0.92618863,83809.0,83808.0,0.0008446]
[1744464009515,0.92118863,83809.0,83808.0,0.0008446]
[1744464009945,0.92718863,83809.0,83808.0,0.0008446]
[1744464010119,0.92818863,83809.0,83808.0,0.0008446]
[1744464010692,0.92618863,83809.0,83808.0,0.0008446]
[1744464010820,0.92118863,83809.0,83808.0,0.0008446]
[1744464011027,0.92718863,83809.0,83808.0,0.0008446]
[1744464011251,0.93218863,83809.0,83808.0,0.0008446]
[1744464011626,1.17082563,83809.0,83808.0,0.0008446]
[1744464012193,1.58841475,83809.0,83808.0,0.0008446]
[1744464012367,1.51082563,83809.0,83808.0,0.0008446]
[1744464012576,1.54424542,83809.0,83808.0,0.0008446]
[1744464013590,0.25321785,83795.0,83794.0,0.0494]
[1744464013787,0.54405939,83795.0,83794.0,0.04944652]
[1744464014195,0.56624343,83795.0,83794.0,0.04944652]
[1744464014396,0.57735058,83795.0,83794.0,0.04944652]
[1744464014801,0.32813273,83795.0,83794.0,0.28912652]
[1744464015004,0.32813273,83795.0,83794.0,0.05044652]
[1744464016228,0.34267358,83795.0,83794.0,0.05044652]
[1744464018038,0.32048954,83795.0,83794.0,0.05044652]
[1744464018266,0.30594869,83795.0,83794.0,0.05044652]
[1744464019583,0.32048954,83795.0,83794.0,0.05044652]
[1744464019784,0.74806714,83795.0,83794.0,0.05044652]
[1744464021582,0.58150714,83795.0,83794.0,0.05044652]
[1744464021767,0.74806714,83795.0,83794.0,0.00104652]
[1744464022405,0.58150714,83795.0,83794.0,0.00104652]
[1744464022708,1.12158203,83795.0,83794.0,0.00104652]
[1744464022913,1.12058203,83795.0,83794.0,4.652e-05]
[1744464023358,1.24131051,83795.0,83794.0,4.652e-05]
[1744464023559,1.24631051,83795.0,83794.0,4.652e-05]
[1744464023683,1.12558203,83795.0,83794.0,4.652e-05]
[1744464024095,0.59322385,83793.0,83792.0,0.000845]
[1744464024301,0.89758028,83793.0,83792.0,0.000845]
[1744464024519,0.91992088,83793.0,83792.0,0.000845]
[1744464025145,0.93102803,83793.0,83792.0,0.000845]
[1744464026431,0.93302803,83793.0,83792.0,0.000845]
[1744464026817,0.47680929,83793.0,83792.0,0.332131]
[1744464027677,0.47680929,83793.0,83792.0,0.093445]
[1744464028416,0.32483014,83793.0,83792.0,0.000845]
[1744464028585,0.49135014,83793.0,83792.0,0.000845]
[1744464028968,0.46570214,83793.0,83792.0,0.239531]
[1744464029511,0.44336154,83793.0,83792.0,0.239531]
[1744464031261,0.27684154,83793.0,83792.0,0.287031]
[1744464031433,0.27684154,83793.0,83792.0,0.334131]
[1744464032253,0.27484154,83793.0,83792.0,0.334131]
[1744464032633,0.27584154,83793.0,83792.0,0.334131]
[1744464033039,0.27584154,83793.0,83792.0,0.335131]
[1744464033502,0.27184154,83793.0,83792.0,0.335131]
[1744464033680,0.27484154,83793.0,83792.0,0.335131]
[1744464033862,0.154,83793.0,83792.0,0.335131]
[1744464034059,0.27484154,83793.0,83792.0,0.335131]
[1744464034261,0.27484154,83793.0,83792.0,0.334131]
[1744464034461,0.27484154,83793.0,83792.0,0.095445]
[1744464036351,0.27484154,83793.0,83792.0,0.096445]
[1744464036917,0.27484154,83793.0,83792.0,0.095445]
[1744464037164,0.27484154,83793.0,83792.0,0.047945]
[1744464037327,0.59232249,83793.0,83792.0,0.001845]
[1744464037536,0.27484154,83793.0,83792.0,0.001845]
[1744464037861,0.52806539,83793.0,83792.0,0.001845]
[1744464038359,0.52406539,83793.0,83792.0,0.000845]
[1744464038568,0.52806539,83793.0,83792.0,0.000845]
[1744464039183,0.53006539,83793.0,83792.0,0.000845]
[1744464039806,0.52406539,83793.0,83792.0,0.000845]
[1744464040140,0.29338239,83793.0,83792.0,0.000845]
[1744464040273,0.69854539,83793.0,83792.0,0.000845]
[1744464040479,0.45986239,83793.0,83792.0,0.000845]
[1744464040687,0.27884154,83793.0,83792.0,0.000845]
[1744464040910,0.27884154,83793.0,83792.0,0.048945]
[1744464042088,0.27884154,83793.0,83792.0,0.049945]
[1744464046495,0.27884154,83793.0,83792.0,0.048945]
[1744464046703,0.27884154,83793.0,83792.0,0.000845]
[1744464047055,0.53206539,83793.0,83792.0,0.000845]
[1744464047456,0.29338239,83793.0,83792.0,0.000845]
[1744464047663,0.45990239,83793.0,83792.0,0.000845]
[1744464047867,0.45990239,83793.0,83792.0,0.01187334]
[1744464048674,1.24937284,83793.0,83792.0,0.01187334]
[1744464048845,1.34107284,83793.0,83792.0,0.01187334]
[1744464049910,1.33307284,83793.0,83792.0,0.01187334]
[1744464050117,1.33907284,83793.0,83792.0,0.01187334]
[1744464050714,1.33307284,83793.0,83792.0,0.01187334]
[1744464050897,1.45380132,83793.0,83792.0,0.01187334]
[1744464051070,1.33307284,83793.0,83792.0,0.01187334]
[1744464051274,1.33707284,83793.0,83792.0,0.01187334]
[1744464051514,1.34407284,83793.0,83792.0,0.01187334]
[1744464051719,1.34007284,83793.0,83792.0,0.01187334]
[1744464052276,1.34607284,83793.0,83792.0,0.01187334]
[1744464052496,1.46680132,83793.0,83792.0,0.01187334]
[1744464052947,0.35454085,83792.0,83787.0,0.0008444]
[1744464053118,0.35454085,83792.0,83758.0,0.0008444]
[1744464053119,0.35454085,83761.0,83758.0,0.0008444]
[1744464053332,0.64538239,83761.0,83758.0,0.0008444]
[1744464053581,0.81190239,83761.0,83760.0,0.00089172]
[1744464053957,0.45736154,83761.0,83760.0,0.23966872]
[1744464054565,0.71067639,83761.0,83760.0,0.00089172]
[1744464054768,0.71267639,83761.0,83760.0,0.00089172]
[1744464055098,1.48248093,83761.0,83760.0,0.00089172]
[1744464055299,1.48348093,83761.0,83760.0,0.00089172]
[1744464055503,1.48048093,83761.0,83760.0,0.00089172]
[1744464055705,1.24170693,83761.0,83760.0,0.00089172]
[1744464055908,1.23485744,83761.0,83760.0,0.00089172]
[1744464056130,0.71379659,83761.0,83760.0,0.00189172]
[1744464056290,0.88023659,83761.0,83760.0,0.04729172]
[1744464056487,0.88023659,83761.0,83760.0,0.00089172]
[1744464056488,0.47882239,83761.0,83760.0,0.00089172]
[1744464056690,0.47382239,83761.0,83760.0,0.00089172]
[1744464057515,0.47682239,83761.0,83760.0,0.00089172]
[1744464058147,0.48182239,83761.0,83760.0,0.00089172]
[1744464062271,0.46728154,83761.0,83760.0,0.00089172]
[1744464062702,0.46732154,83761.0,83760.0,0.09599172]
[1744464063535,0.46732154,83761.0,83760.0,0.33476872]
[1744464066115,0.30084154,83761.0,83760.0,0.33476872]
[1744464066305,0.30084154,83761.0,83760.0,0.04959172]
[1744464066478,0.30084154,83761.0,83760.0,0.00089172]
[1744464066479,0.55415639,83761.0,83760.0,0.00089172]
[1744464066808,0.89415639,83761.0,83760.0,0.00089172]
[1744464067963,0.88915639,83761.0,83760.0,0.00089172]
[1744464068164,0.88415639,83761.0,83760.0,0.00089172]
[1744464068481,0.88815639,83761.0,83760.0,0.00089172]
[1744464069776,0.89415639,83761.0,83760.0,0.00089172]
[1744464070548,0.9059756,83761.0,83760.0,0.00089172]
[1744464075158,1.32193065,83761.0,83760.0,0.00089172]
[1744464077761,1.08315665,83761.0,83760.0,0.00089172]
[1744464077961,1.23781744,83761.0,83760.0,0.00089172]
[1744464078163,0.89781744,83761.0,83760.0,0.23966872]
[1744464078375,0.89781744,83761.0,83760.0,0.00089172]
[1744464078967,0.90972283,83761.0,83760.0,0.00089172]
[1744464082432,0.89781744,83761.0,83760.0,0.00089172]
[1744464083348,0.30084154,83761.0,83760.0,0.00089172]
[1744464083549,0.30084154,83761.0,83760.0,0.04749172]
[1744464083974,0.82186239,83761.0,83760.0,0.00089172]
[1744464086065,0.30084154,83761.0,83760.0,0.04739172]
[1744464086809,0.30084154,83761.0,83760.0,0.04639172]
[1744464087978,0.30084154,83761.0,83760.0,0.28516872]
[1744464088182,0.30084154,83761.0,83760.0,0.28616872]
[1744464090465,0.55415639,83761.0,83760.0,0.00089172]
[1744464090612,0.31538239,83761.0,83760.0,0.00089172]
[1744464091406,0.6116562,83761.0,83760.0,0.00089172]
[1744464091625,0.55415639,83761.0,83760.0,0.00089172]
[1744464096337,0.72051639,83761.0,83760.0,0.00089172]
[1744464098471,1.16999853,83761.0,83760.0,0.00089172]
[1744464098873,1.50999853,83761.0,83760.0,0.00089172]
[1744464099516,1.53355293,83761.0,83760.0,0.00089172]
[1744464100785,1.27122453,83761.0,83760.0,0.00089172]
[1744464100956,1.50999853,83761.0,83760.0,0.00089172]
[1744464101136,1.50999853,83761.0,83760.0,0.24066872]
[1744464101137,1.09032368,83761.0,83760.0,0.24066872]
[1744464101344,1.05679659,83761.0,83760.0,0.00189172]
[1744464103530,0.71679659,83761.0,83760.0,0.00189172]
[1744464103959,0.30084154,83761.0,83760.0,0.05109172]
[1744464106143,0.30084154,83761.0,83760.0,0.00189172]
[1744464106568,0.31538239,83761.0,83760.0,0.00089172]
[1744464106727,0.55415639,83761.0,83760.0,0.00089172]
[1744464111616,0.72051639,83761.0,83760.0,0.00089172]
[1744464112882,0.31538239,83761.0,83760.0,0.00089172]
[1744464113063,0.46720154,83761.0,83760.0,0.00089172]
[1744464113584,0.30084154,83761.0,83760.0,0.00089172]
[1744464113718,0.46720154,83761.0,83760.0,0.00089172]
[1744464114140,0.72051639,83761.0,83760.0,0.00089172]
[1744464117565,0.55415639,83761.0,83760.0,0.00089172]
[1744464117885,1.13998609,83761.0,83760.0,0.00089172]
[1744464118116,1.55594114,83761.0,83760.0,0.00089172]
[1744464119116,1.54994114,83761.0,83760.0,0.00089172]
[1744464119504,1.55594114,83761.0,83760.0,0.00089172]
[1744464119810,1.67666962,83761.0,83760.0,0.00089172]
[1744464120017,1.67266962,83761.0,83760.0,0.00089172]
[1744464120219,1.67766962,83761.0,83760.0,0.00089172]
[1744464120401,1.55694114,83761.0,83760.0,0.00089172]
[1744464121873,0.238871,83727.0,83711.0,0.08980663]
[1744464122063,0.238871,83727.0,83698.0,8e-05]
[1744464122064,0.59346285,83709.0,83698.0,8e-05]
[1744464122272,0.01454085,83699.0,83698.0,8e-05]
[1744464122545,0.51454085,83699.0,83698.0,8e-05]
[1744464122743,0.51345169,83699.0,83698.0,0.00054568]
[1744464123102,0.91406689,83699.0,83698.0,0.00054568]
[1744464124277,0.81254362,83699.0,83698.0,0.00054568]
[1744464124757,0.81354362,83699.0,83698.0,0.00054568]
[1744464124956,0.81654362,83699.0,83698.0,0.00054568]
[1744464126312,0.59349485,83698.0,83697.0,0.07164548]
[1744464126483,2.09188739,83698.0,83697.0,0.07169199]
[1744464126690,2.21261587,83698.0,83697.0,0.07169199]
[1744464127266,2.21261587,83698.0,83697.0,4.651e-05]
[1744464127767,1.06916041,83698.0,83697.0,4.651e-05]
[1744464127942,0.90192041,83698.0,83697.0,4.651e-05]
[1744464128140,1.08274126,83698.0,83697.0,4.651e-05]
[1744464128317,1.09174126,83698.0,83697.0,4.651e-05]
[1744464128482,1.06961639,83698.0,83697.0,4.651e-05]
[1744464128683,1.07861639,83698.0,83697.0,4.651e-05]
[1744464128921,0.91233639,83698.0,83697.0,4.651e-05]
[1744464129146,1.07861639,83698.0,83697.0,4.651e-05]
[1744464129359,1.19934487,83698.0,83697.0,4.651e-05]
[1744464129560,1.07861639,83698.0,83697.0,4.651e-05]
[1744464129783,1.06961639,83698.0,83697.0,4.651e-05]
[1744464130149,1.06061639,83698.0,83697.0,4.651e-05]
[1744464130337,1.07361639,83698.0,83697.0,4.651e-05]
[1744464130722,1.48957144,83698.0,83697.0,4.651e-05]
[1744464131080,1.61029992,83698.0,83697.0,4.651e-05]
[1744464132395,2.08157292,83698.0,83697.0,4.651e-05]
[1744464132589,1.95348292,83698.0,83697.0,4.651e-05]
[1744464132993,1.89720092,83698.0,83697.0,4.651e-05]
[1744464133389,1.83290392,83698.0,83697.0,4.651e-05]
[1744464135626,0.59355485,83677.0,83676.0,0.0004227]
[1744464135803,2.69663144,83677.0,83676.0,0.00047275]
[1744464136003,2.71869759,83677.0,83676.0,0.00047275]
[1744464136329,3.30589107,83677.0,83676.0,0.00047275]
[1744464136530,3.01884259,83677.0,83676.0,0.00047275]
[1744464136749,3.00804659,83677.0,83676.0,0.00047275]
[1744464137161,0.00957054,83652.0,83649.0,1.04499485]
[1744464137345,0.28720154,83651.0,83649.0,1.04546013]
[1744464137507,0.239091,83650.0,83649.0,1.04546013]
[1744464137701,0.28084154,83650.0,83649.0,1.04546013]
[1744464137913,0.30290769,83650.0,83649.0,1.23745413]
[1744464138113,0.30290769,83650.0,83649.0,1.24841467]
[1744464138318,0.31203885,83650.0,83649.0,1.24841467]
[1744464138530,0.31203885,83650.0,83649.0,1.2477945]
[1744464139725,0.2899727,83650.0,83649.0,1.2477945]
[1744464139925,0.28184154,83650.0,83649.0,1.2477945]
[1744464140351,0.52970627,83650.0,83649.0,1.0087005]
[1744464140569,0.56628439,83650.0,83649.0,1.00311897]
[1744464140726,0.56728439,83650.0,83649.0,1.00311897]
[1744464141350,0.32619339,83650.0,83649.0,1.00311897]
[1744464141554,0.32719339,83650.0,83649.0,1.00311897]
[1744464141758,0.49555339,83650.0,83649.0,1.00311897]
[1744464141972,0.83555339,83650.0,83649.0,1.00311897]
[1744464142116,0.83355339,83650.0,83649.0,1.00311897]
[1744464142314,1.41563692,83650.0,83649.0,0.01200438]
[1744464142526,0.011958,83625.0,83614.0,0.0004221]
[1744464142769,0.71455039,83623.0,83622.0,4.8e-07]
[1744464143169,0.90658766,83623.0,83622.0,4.8e-07]
[1744464143369,0.90658766,83623.0,83614.0,0.0004221]
[1744464143370,0.580191,83615.0,83614.0,1e-07]
[1744464143687,0.85103254,83615.0,83614.0,5.019e-05]
[1744464143887,0.87206981,83615.0,83614.0,5.019e-05]
[1744464144314,1.15776981,83615.0,83614.0,5.019e-05]
[1744464144517,0.91857881,83615.0,83614.0,5.019e-05]
[1744464144660,0.79927881,83615.0,83614.0,5.019e-05]
[1744464144863,0.92000729,83615.0,83614.0,5.019e-05]
[1744464145062,1.04850729,83615.0,83614.0,5.019e-05]
[1744464145277,1.06404814,83615.0,83614.0,5.019e-05]
[1744464145477,1.07204814,83615.0,83614.0,5.019e-05]
[1744464146143,0.94231966,83615.0,83614.0,5.019e-05]
[1744464146763,0.81381966,83615.0,83614.0,5.019e-05]
[1744464147100,0.82681966,83615.0,83614.0,5.019e-05]
[1744464147291,0.81381966,83615.0,83614.0,5.019e-05]
[1744464147488,0.82181966,83615.0,83614.0,5.019e-05]
[1744464147694,0.84720848,83615.0,83614.0,5.019e-05]
[1744464148141,1.24465471,83615.0,83614.0,5.019e-05]
[1744464148517,1.22965471,83615.0,83614.0,5.019e-05]
[1744464148900,1.24365471,83615.0,83614.0,5.019e-05]
[1744464149359,1.23565471,83615.0,83614.0,5.019e-05]
[1744464150531,1.47484571,83615.0,83614.0,5.019e-05]
[1744464150953,1.58801261,83615.0,83614.0,5.019e-05]
[1744464151155,1.48184571,83615.0,83614.0,5.019e-05]
[1744464152886,0.81219881,83615.0,83614.0,5.019e-05]
[1744464153122,0.30587881,83615.0,83614.0,0.23924419]
[1744464153843,2.7e-07,83615.0,83614.0,0.24163606]
[1744464154039,0.19084181,83615.0,83614.0,0.28424419]
[1744464154284,0.19784154,83615.0,83614.0,0.28424419]
[1744464154703,0.19384154,83615.0,83614.0,0.28424419]
[1744464155134,0.19084154,83615.0,83614.0,0.28424419]
[1744464155609,0.19384154,83615.0,83614.0,0.28424419]
[1744464156989,0.19384154,83615.0,83614.0,0.23924419]
[1744464157597,0.19384154,83615.0,83614.0,5.019e-05]
[1744464158420,0.20838239,83615.0,83614.0,0.23924419]
[1744464159279,0.36016154,83615.0,83614.0,0.23924419]
[1744464159594,0.19384154,83615.0,83614.0,0.23924419]
[1744464160396,0.19384154,83615.0,83614.0,0.22044419]
[1744464165227,0.44757339,83615.0,83601.0,0.002]
[1744464165417,0.01454085,83603.0,83601.0,0.002]
[1744464165653,0.71461039,83602.0,83601.0,0.002]
[1744464165807,0.87461039,83602.0,83601.0,0.00205008]
[1744464166013,1.01666086,83602.0,83601.0,0.00205008]
[1744464166251,0.90874052,83602.0,83601.0,0.00205008]
[1744464167564,0.91095902,83602.0,83601.0,0.00205008]
[1744464168147,0.91295902,83602.0,83601.0,0.00305008]
[1744464169369,0.73927902,83602.0,83601.0,0.00305008]
[1744464169774,0.50005102,83602.0,83601.0,0.00305008]
[1744464169998,0.48551017,83602.0,83601.0,0.00305008]
[1744464171812,0.31919017,83602.0,83601.0,0.00305008]
[1744464172350,0.29699685,83602.0,83601.0,0.00305008]
[1744464173216,0.28784154,83602.0,83601.0,0.05065008]
[1744464173424,0.167,83602.0,83601.0,0.05065008]
[1744464174491,0.165,83602.0,83601.0,0.04965008]
[1744464174677,0.18225901,83602.0,83601.0,0.04965008]
[1744464174897,0.18425901,83602.0,83601.0,0.04965008]
[1744464176105,0.18925901,83602.0,83601.0,0.04965008]
[1744464177546,0.31010055,83602.0,83601.0,0.04965008]
[1744464179391,0.31010055,83602.0,83601.0,0.00205008]
[1744464181303,0.31912622,83602.0,83601.0,0.00205008]
[1744464183260,0.31010055,83602.0,83601.0,0.00205008]
[1744464183629,0.31010055,83602.0,83601.0,0.04775008]
[1744464184024,0.18925901,83602.0,83601.0,0.04775008]
[1744464185528,0.18425901,83602.0,83601.0,0.04775008]
[1744464186089,0.18825901,83602.0,83601.0,0.04775008]
[1744464186272,0.18625901,83602.0,83601.0,0.04775008]
[1744464186476,0.18225901,83602.0,83601.0,0.04875008]
[1744464186773,0.18625901,83602.0,83601.0,0.09495008]
[1744464187180,0.18625901,83602.0,83601.0,0.09595008]
[1744464187884,0.18625901,83602.0,83601.0,0.09495008]
[1744464188332,0.18725901,83602.0,83601.0,0.05225008]
[1744464188521,0.18325901,83602.0,83601.0,0.05225008]
[1744464188927,0.18625901,83602.0,83601.0,0.05225008]
[1744464190648,0.18625901,83602.0,83601.0,0.00505008]
[1744464191792,0.30710055,83602.0,83601.0,0.00505008]
[1744464193299,0.38389318,83602.0,83601.0,0.00505008]
[1744464193556,1.02676203,83602.0,83601.0,0.00505008]
[1744464194106,0.95873837,83602.0,83601.0,0.00505008]
[1744464194750,1.32348237,83602.0,83601.0,0.00505008]
[1744464194952,1.32048237,83602.0,83601.0,0.00505008]
[1744464195335,1.32448237,83602.0,83601.0,0.00505008]
[1744464195532,0.95873837,83602.0,83601.0,0.00205008]
[1744464195819,1.06356637,83602.0,83601.0,0.00305008]
[1744464196058,1.06356637,83602.0,83601.0,0.00205008]
[1744464196232,1.2266816,83602.0,83601.0,0.00205008]
[1744464196450,0.35454085,83601.0,83580.0,0.0004227]
[1744464196652,0.71464739,83589.0,83588.0,0.00050579]
[1744464196849,1.53968466,83589.0,83588.0,0.00050579]
[1744464197050,1.52518039,83589.0,83588.0,0.00050579]
[1744464197251,1.94113544,83589.0,83588.0,0.00050579]
[1744464197772,1.68892044,83589.0,83588.0,0.00050579]
[1744464197929,1.29060244,83589.0,83588.0,0.00050579]
[1744464198132,1.29060244,83589.0,83580.0,0.0004227]
[1744464198133,0.59382885,83581.0,83580.0,7e-07]
[1744464198349,0.59385485,83572.0,83571.0,0.002]
[1744464198553,2.34987044,83572.0,83571.0,0.00246666]
[1744464198752,2.42126085,83572.0,83571.0,0.00246666]
[1744464198957,2.57531669,83572.0,83571.0,0.00246666]
[1744464199134,0.05984085,83566.0,83565.0,4e-07]
[1744464199353,2.38976985,83566.0,83565.0,0.00010073]
[1744464199555,2.4119589,83566.0,83565.0,0.00010073]
[1744464199762,3.3920419,83566.0,83565.0,0.00010073]
[1744464200106,2.4119589,83566.0,83565.0,0.00010073]
[1744464200312,2.18583805,83566.0,83565.0,0.00010073]
[1744464200488,2.3666989,83566.0,83565.0,0.00010073]
[1744464200961,2.2003789,83566.0,83565.0,0.00010073]
[1744464201171,2.3666989,83566.0,83565.0,0.00010073]
[1744464201380,2.3756989,83566.0,83565.0,0.00010073]
[1744464201693,2.3836989,83566.0,83565.0,0.00010073]
[1744464201872,2.1443679,83566.0,83565.0,0.00010073]
[1744464202253,2.26509638,83566.0,83565.0,0.00010073]
[1744464202452,2.12982705,83566.0,83565.0,0.00010073]
[1744464202674,2.12982705,83566.0,83565.0,0.23943473]
[1744464202874,1.96350705,83566.0,83565.0,0.23943473]
[1744464203068,2.12982705,83566.0,83565.0,0.23943473]
[1744464203313,1.78982705,83566.0,83565.0,0.23943473]
[1744464203742,1.62350705,83566.0,83565.0,0.23943473]
[1744464203894,0.38335795,83566.0,83565.0,0.23943473]
[1744464204101,0.37435795,83566.0,83565.0,0.23943473]
[1744464204523,0.38035795,83566.0,83565.0,0.23943473]
[1744464204716,0.37235795,83566.0,83565.0,0.23943473]
[1744464204937,0.37535795,83566.0,83565.0,0.23943473]
[1744464209040,0.25451641,83566.0,83565.0,0.28882784]
[1744464209221,0.25451641,83566.0,83565.0,0.28643473]
[1744464209484,0.23232736,83566.0,83565.0,0.28643473]
[1744464210283,0.199,83566.0,83565.0,0.28643473]
[1744464210485,0.22117398,83566.0,83565.0,0.28643473]
[1744464210667,0.33901552,83566.0,83565.0,0.28643473]
[1744464210873,0.33301552,83566.0,83565.0,0.28643473]
[1744464211077,0.33401552,83566.0,83565.0,0.28843473]
[1744464211226,0.33601552,83566.0,83565.0,0.28843473]
[1744464211422,0.33601552,83566.0,83565.0,0.24143473]
[1744464211627,0.33401552,83566.0,83565.0,0.24143473]
[1744464211870,0.33301552,83566.0,83565.0,0.23943473]
[1744464212081,0.33601552,83566.0,83565.0,0.23943473]
[1744464212241,0.33701552,83566.0,83565.0,0.24143473]
[1744464212851,0.34810209,83566.0,83565.0,0.24143473]
[1744464214728,0.34810209,83566.0,83565.0,0.00210073]
[1744464215893,0.58743309,83566.0,83565.0,0.00210073]
[1744464216291,0.60197394,83566.0,83565.0,0.00210073]
[1744464216490,1.06197505,83566.0,83565.0,0.00210073]
[1744464216698,1.67397905,83566.0,83565.0,0.00210073]
[1744464217009,1.28374505,83566.0,83565.0,0.00210073]
[1744464217544,0.92743309,83566.0,83565.0,0.00210073]
[1744464217833,0.94197394,83566.0,83565.0,0.00210073]
[1744464218046,1.11365394,83566.0,83565.0,0.00210073]
[1744464218658,1.61816194,83566.0,83565.0,0.00210073]
[1744464218863,1.41376894,83566.0,83565.0,0.00210073]
[1744464219163,1.53349742,83566.0,83565.0,0.00010073]
[1744464219365,1.40576894,83566.0,83565.0,0.00010073]
[1744464219801,1.41376894,83566.0,83565.0,0.00010073]
[1744464220205,1.41876894,83566.0,83565.0,7.3e-07]
[1744464220343,1.24338242,83566.0,83565.0,7.3e-07]
[1744464220598,1.23838242,83566.0,83565.0,7.3e-07]
[1744464220800,0.25017277,83544.0,83541.0,0.002]
[1744464221051,0.2394,83542.0,83541.0,0.00213989]
[1744464221232,0.54241552,83542.0,83541.0,0.00213989]
[1744464221756,0.55350209,83542.0,83541.0,0.00213989]
[1744464221896,0.55350209,83542.0,83541.0,0.00413989]
[1744464222325,0.56238787,83542.0,83541.0,0.00413989]
[1744464222742,0.56238787,83542.0,83541.0,0.00213989]
[1744464223149,0.32698787,83542.0,83541.0,0.00213989]
[1744464224522,0.32798787,83542.0,83541.0,0.00413989]
[1744464225523,0.56738787,83542.0,83541.0,0.00413989]
[1744464225639,0.32798787,83542.0,83541.0,0.00413989]
[1744464226253,0.31910209,83542.0,83541.0,0.24354289]
[1744464227278,0.19826055,83542.0,83541.0,0.24354289]
[1744464228115,0.19826055,83542.0,83541.0,0.25140399]
[1744464230414,0.19826055,83542.0,83541.0,0.29700399]
[1744464232048,5.5e-07,83542.0,83541.0,0.34370399]
[1744464232212,0.08000055,83542.0,83541.0,0.34370399]
[1744464233236,0.17728,83559.0,83558.0,0.239354]
[1744464233436,0.15,83559.0,83558.0,0.239354]
[1744464233929,0.15,83559.0,83558.0,0.284954]
[1744464234280,0.15,83559.0,83558.0,0.331654]
[1744464234820,0.17728,83584.0,83558.0,0.331654]
[1744464234821,0.17728,83584.0,83583.0,0.239283]
[1744464234975,0.45812154,83584.0,83583.0,0.239283]
[1744464236205,0.46757197,83584.0,83583.0,0.239283]
[1744464236433,0.29029197,83584.0,83583.0,0.239283]
[1744464236584,0.29629197,83584.0,83583.0,0.240283]
[1744464236964,0.28730459,83584.0,83583.0,0.240283]
[1744464237361,0.29130459,83584.0,83583.0,0.241283]
[1744464239547,0.29130459,83584.0,83583.0,0.002]
[1744464240127,0.53058459,83584.0,83583.0,0.002]
[1744464241101,0.29130459,83584.0,83583.0,0.002]
[1744464241273,0.29130459,83584.0,83583.0,0.241283]
[1744464242802,0.29130459,83584.0,83583.0,0.002]
[1744464243005,0.29130459,83584.0,83583.0,0.241283]
[1744464243756,0.03000005,83584.0,83583.0,0.288883]
[1744464243952,0.05225466,83584.0,83583.0,0.288883]
[1744464244411,0.06338215,83584.0,83583.0,0.288883]
[1744464244717,0.04112749,83584.0,83583.0,0.286883]
[1744464245060,0.04912749,83584.0,83583.0,0.287883]
[1744464245953,0.06635385,83584.0,83583.0,0.287883]
[1744464246310,0.06735385,83584.0,83583.0,0.286883]
[1744464246519,0.06735385,83584.0,83583.0,0.287883]
[1744464246724,0.04512749,83584.0,83583.0,0.287883]
[1744464248431,0.034,83584.0,83583.0,0.287883]
[1744464249765,0.03,83584.0,83583.0,0.286883]
[1744464250168,0.031,83584.0,83583.0,0.291883]
[1744464251082,0.02304404,83600.0,83599.0,0.239237]
[1744464251317,0.17304404,83600.0,83599.0,0.287137]
[1744464251730,0.1508464,83600.0,83599.0,0.287137]
[1744464251937,0.1508464,83600.0,83593.0,0.239252]
[1744464251938,0.23928,83584.0,83583.0,0.00613989]
[1744464252142,0.51012154,83584.0,83583.0,0.00613989]
[1744464252289,0.27084154,83584.0,83583.0,0.00113989]
[1744464252497,0.53229813,83584.0,83583.0,0.00013989]
[1744464252666,0.29301813,83584.0,83583.0,0.00013989]
[1744464253100,0.30410558,83584.0,83583.0,0.00013989]
[1744464253291,0.31485581,83584.0,83583.0,0.00013989]
[1744464254358,0.31885581,83584.0,83583.0,0.00013989]
[1744464254962,0.55813581,83584.0,83583.0,0.00013989]
[1744464255398,0.53595922,83584.0,83583.0,0.00013989]
[1744464256070,0.52487177,83584.0,83583.0,0.00013989]
[1744464257295,0.28559177,83584.0,83583.0,0.00013989]
[1744464257922,0.27684154,83584.0,83583.0,0.00013989]
[1744464258845,0.27284154,83584.0,83583.0,0.00013989]
[1744464259167,0.153,83584.0,83583.0,0.00013989]
[1744464259369,0.155,83584.0,83583.0,0.00013989]
[1744464260257,0.155,83584.0,83583.0,0.04783232]
[1744464260463,0.155,83584.0,83583.0,0.04543989]
[1744464260677,0.152,83584.0,83583.0,0.04543989]
[1744464261083,0.154,83584.0,83583.0,0.00013989]
[1744464261485,0.152,83584.0,83583.0,0.00013989]
[1744464261823,0.152,83584.0,83583.0,0.00213989]
[1744464262228,0.152,83584.0,83583.0,0.00453243]
[1744464262484,0.152,83584.0,83583.0,0.00213989]
[1744464265042,0.0008464,83600.0,83599.0,0.239237]
[1744464265277,4e-07,83600.0,83599.0,0.239237]
[1744464265475,4e-07,83600.0,83599.0,0.285037]
[1744464266435,0.0010004,83600.0,83599.0,0.289037]
[1744464266858,8e-07,83618.0,83616.0,0.240188]
[1744464267029,0.1600008,83618.0,83617.0,0.09699086]